bitfinex-derivatives/quotes_SOLF0:USTF0_20250311
["timestamp","ask_amount","ask_price","bid_price","bid_amount"]
[1741712585441,7.999,125.05,125.04,0.06077947]
[1741712585642,0.06044936,125.06,125.04,0.06077947]
[1741712586443,0.06044936,125.06,125.04,8.06007947]
[1741712586648,0.06044936,125.06,125.04,0.06077947]
[1741712587249,38.98,125.13,125.04,0.06077947]
[1741712587444,274.92568839,125.14,125.05,33.1385311]
[1741712587445,21.18485,125.1,125.05,33.1385311]
[1741712587648,21.18485,125.1,125.06,44.2608]
[1741712588038,21.18485,125.1,125.08,7.9968]
[1741712588442,21.24413629,125.1,125.08,0.05199016]
[1741712589250,4.83753629,125.1,125.09,7.9964]
[1741712589747,263.88,125.14,125.1,7.9955]
[1741712589945,263.88,125.14,125.07,33.1385311]
[1741712590145,72.0785311,125.19,125.08,38.94]
[1741712590346,74.5962311,125.19,125.08,38.94]
[1741712591048,0.05971063,125.15,125.12,0.05030471]
[1741712591649,8.05291063,125.15,125.12,0.05030471]
[1741712591847,33.19824173,125.15,125.12,0.05030471]
[1741712592445,33.1385311,125.13,125.07,38.74]
[1741712592641,33.1385311,125.11,125.04,38.84]
[1741712592848,33.1385311,125.11,125.03,46.84]
[1741712593042,33.1385311,125.11,125.03,38.84]
[1741712593342,33.1385311,125.09,125.02,2.6782]
[1741712593752,0.05784764,125.07,125.04,0.05403374]
[1741712594654,8.05594764,125.07,125.04,0.05403374]
[1741712594950,0.05784764,125.07,125.04,0.05403374]
[1741712595345,263.82,125.12,125.04,0.05403374]
[1741712595546,263.82,125.12,125.03,33.1385311]
[1741712595753,271.8145,125.12,125.07,7.9972]
[1741712596053,263.82,125.12,125.07,38.62]
[1741712596450,0.05847712,125.11,125.08,0.06064884]
[1741712596850,0.05847712,125.11,125.1,7.9958]
[1741712597055,0.05847712,125.11,125.08,5.26324884]
[1741712598051,0.05847712,125.11,125.1,7.9958]
[1741712598246,44.18275356,125.18,125.09,38.62]
[1741712598646,44.18275356,125.18,125.15,7.9926]
[1741712598847,44.18275356,125.18,125.14,38.58]
[1741712599047,44.18275356,125.18,125.15,7.9925]
[1741712599245,44.18275356,125.18,125.15,0.0527481]
[1741712599446,44.22961428,125.18,125.15,0.0527481]
[1741712600448,0.04686072,125.18,125.15,0.0527481]
[1741712600855,7.992,125.16,125.15,0.0527481]
[1741712601052,7.992,125.16,125.1,38.44]
[1741712601262,53.83727336,125.14,125.08,2.5962]
[1741712601756,7.9941,125.13,125.08,2.5962]
[1741712602157,53.83727336,125.14,125.08,2.5962]
[1741712602356,0.05208383,125.12,125.09,0.05686462]
[1741712603459,8.04698383,125.12,125.09,0.05686462]
[1741712603862,7.9958,125.1,125.09,0.05686462]
[1741712604259,0.05208383,125.12,125.09,0.05686462]
[1741712604463,7.9954,125.11,125.09,0.05686462]
[1741712604962,0.05208383,125.12,125.09,0.05686462]
[1741712605152,7.9952,125.11,125.09,0.05686462]
[1741712605358,0.05208383,125.12,125.09,0.05686462]
[1741712606256,7.9958,125.1,125.09,0.05686462]
[1741712606865,319.97727336,125.1,125.0,43.4197]
[1741712607165,53.83727336,125.07,125.0,43.4197]
[1741712607355,53.83727336,125.07,125.0,5.1197]
[1741712607559,53.83727336,125.07,124.99,38.28]
[1741712608059,0.06057093,125.04,124.99,38.28]
[1741712608254,0.06057093,125.04,125.02,0.05624369]
[1741712608457,53.83727336,125.03,124.95,8.0051]
[1741712608657,53.83727336,125.03,124.95,38.2]
[1741712609057,8.0026,125.0,124.95,38.2]
[1741712609459,53.83727336,125.01,124.94,2.5096]
[1741712609766,8.0037,124.98,124.94,2.5096]
[1741712610063,8.0037,124.98,124.96,0.05089499]
[1741712610263,0.05960027,124.99,124.96,0.05089499]
[1741712610764,53.83727336,124.98,124.91,38.08]
[1741712610967,53.83727336,124.96,124.89,38.14]
[1741712611263,61.84117336,124.98,124.89,38.14]
[1741712611459,53.83727336,124.98,124.89,38.14]
[1741712611655,53.83727336,124.98,124.88,133.67925741]
[1741712611961,0.05413778,124.94,124.92,0.05091913]
[1741712612353,0.05413778,124.94,124.92,8.05801913]
[1741712612761,0.05413778,124.94,124.93,38.14]
[1741712613057,271.3957,125.02,124.93,38.14]
[1741712613454,271.3957,125.02,124.94,8.0056]
[1741712613455,8.0017,125.01,124.94,8.0056]
[1741712614070,0.05711999,124.99,124.96,0.0554798]
[1741712614757,8.0035,124.98,124.96,0.0554798]
[1741712615161,0.05711999,124.99,124.96,0.0554798]
[1741712616756,0.05711999,124.99,124.96,38.0754798]
[1741712617361,0.05711999,124.99,124.96,0.0554798]
[1741712617967,0.05711999,124.99,124.97,8.0038]
[1741712618169,0.05711999,124.99,124.96,0.0554798]
[1741712618670,0.05711999,124.99,124.97,37.94]
[1741712619165,0.05711999,124.99,124.98,8.0035]
[1741712619667,263.78,125.02,124.97,37.94]
[1741712620263,263.78,125.02,125.0,8.0017]
[1741712620463,263.78,125.02,124.97,37.94]
[1741712620869,33.19089318,125.05,124.98,0.05544079]
[1741712621071,0.05135147,125.01,124.98,0.05544079]
[1741712621364,0.05135147,125.01,125.0,8.0022]
[1741712622267,5.0008,125.06,124.98,0.0505772]
[1741712622464,263.94,125.08,124.97,71.13089318]
[1741712622660,263.94,125.08,124.99,33.19089318]
[1741712622871,263.94,125.08,125.0,2.6305]
[1741712623066,263.94,125.08,125.01,37.8]
[1741712623274,263.94,125.08,125.07,7.9977]
[1741712623771,33.24332171,125.09,125.06,0.05795058]
[1741712624067,41.18639318,125.11,125.06,0.05795058]
[1741712624271,0.05508947,125.09,125.06,0.05795058]
[1741712624473,0.05508947,125.09,125.07,7.9977]
[1741712624864,0.05508947,125.09,125.06,0.05795058]
[1741712626569,0.05508947,125.09,125.06,8.05575058]
[1741712626970,0.05508947,125.09,125.06,0.05795058]
[1741712627670,0.05508947,125.09,125.07,7.9973]
[1741712628175,0.05508947,125.09,125.06,0.05795058]
[1741712628872,263.92,125.14,125.06,0.05795058]
[1741712629074,7.9919,125.17,125.06,225.59199318]
[1741712629273,40.78799318,125.18,125.1,7.9954]
[1741712629571,33.19089318,125.15,124.99,190.0]
[1741712629771,33.19089318,125.12,125.05,7.999]
[1741712630071,0.05072077,125.1,125.07,0.05254742]
[1741712630672,33.24161395,125.1,125.07,0.05254742]
[1741712630864,7.9971,125.08,125.07,0.05254742]
[1741712631065,33.19089318,125.08,124.98,37.98]
[1741712631368,8.0015,125.02,124.98,37.98]
[1741712631573,33.19089318,125.04,124.98,37.98]
[1741712631970,33.19089318,125.04,124.98,45.9831]
[1741712632177,0.05834736,125.02,125.0,0.05771505]
[1741712634074,8.05984736,125.02,125.0,0.05771505]
[1741712634476,0.05834736,125.02,125.0,0.05771505]
[1741712636874,0.05834736,125.02,125.0,8.05951505]
[1741712637074,0.05834736,125.02,125.0,0.05771505]
[1741712637474,0.05834736,125.02,125.0,8.05941505]
[1741712637778,0.05834736,125.02,125.0,0.05771505]
[1741712638077,0.05834736,125.02,125.01,8.0015]
[1741712638270,7.998,125.07,125.0,0.05771505]
[1741712638477,35.58109318,125.08,125.03,8.0]
[1741712638674,35.58109318,125.08,125.02,37.86]
[1741712638675,2.3902,125.08,125.02,37.86]
[1741712639177,33.19089318,125.07,125.02,37.86]
[1741712639479,0.04492083,125.06,125.04,0.05199096]
[1741712639683,33.19089318,125.07,124.99,37.84]
[1741712639981,0.04492083,125.06,125.04,0.05477448]
[1741712640177,0.04492083,125.06,124.99,37.84]
[1741712640383,0.04492083,125.06,125.0,37.82]
[1741712640575,33.19089318,125.07,125.0,37.82]
[1741712641178,33.19089318,125.07,125.01,8.0012]
[1741712641379,33.19089318,125.07,125.02,0.06001637]
[1741712641380,8.0,125.04,125.02,0.06001637]
[1741712641575,0.05989831,125.05,125.02,0.06001637]
[1741712644684,8.0003,125.03,125.02,0.06001637]
[1741712644874,0.05989831,125.05,125.02,0.06001637]
[1741712645081,0.05989831,125.05,125.02,8.06051637]
[1741712645274,0.05989831,125.05,125.02,0.06001637]
[1741712645982,0.05989831,125.05,125.03,37.64]
[1741712646176,302.20289318,125.13,125.06,7.998]
[1741712646380,302.20289318,125.13,125.03,42.4719]
[1741712646988,7.9974,125.08,125.05,7.9986]
[1741712647376,0.039797,125.08,125.06,0.05570049]
[1741712649085,7.9977,125.07,125.06,0.05570049]
[1741712649286,0.039797,125.08,125.06,0.05570049]
[1741712650682,0.039797,125.08,125.06,8.05380049]
[1741712651290,0.039797,125.08,125.07,7.9977]
[1741712651479,0.039797,125.08,125.06,0.05570049]
[1741712652494,0.039797,125.08,125.06,8.05370049]
[1741712653193,0.039797,125.08,125.07,7.9977]
[1741712653492,0.039797,125.08,125.06,0.05570049]
[1741712653685,0.039797,125.08,125.07,7.9977]
[1741712653893,271.8541,125.13,125.07,37.52]
[1741712654090,263.86,125.13,125.07,37.52]
[1741712654290,263.86,125.13,125.07,45.5176]
[1741712654491,7.9955,125.11,125.07,45.5176]
[1741712654698,263.86,125.13,125.07,37.52]
[1741712654896,7.9949,125.12,125.08,7.997]
[1741712655097,263.86,125.13,125.09,0.05410066]
[1741712655401,7.9946,125.12,125.09,0.05410066]
[1741712655702,263.86,125.13,125.09,0.05410066]
[1741712656096,7.9949,125.12,125.09,0.05410066]
[1741712656593,7.9934,125.14,125.11,7.995]
[1741712656797,7.9934,125.14,125.09,0.05410066]
[1741712656798,38.21199318,125.17,125.07,37.52]
[1741712657001,5.0211,125.17,125.11,0.05232859]
[1741712657202,5.0211,125.17,125.12,37.5]
[1741712657397,308.00275356,125.19,125.12,37.5]
[1741712657795,7.991,125.18,125.14,0.05041755]
[1741712658098,308.00275356,125.19,125.14,0.05041755]
[1741712658398,308.00275356,125.19,125.16,7.9919]
[1741712658598,308.00275356,125.19,125.14,0.05041755]
[1741712659005,308.00275356,125.19,125.16,7.9916]
[1741712659297,308.00275356,125.19,125.14,0.05041755]
[1741712659500,282.85618839,125.19,125.14,0.05041755]
[1741712659694,263.82,125.19,125.14,0.05041755]
[1741712659897,7.991,125.18,125.14,8.04321755]
[1741712660388,271.8104,125.19,125.15,7.9925]
[1741712660594,263.82,125.19,125.14,0.05041755]
[1741712661000,7.9926,125.15,125.14,0.05041755]
[1741712661399,33.19089318,125.18,125.14,0.05041755]
[1741712661598,7.9921,125.16,125.14,0.05041755]
[1741712661800,33.19089318,125.18,125.14,0.05041755]
[1741712662002,7.9926,125.15,125.14,0.05041755]
[1741712662303,33.19089318,125.18,125.14,0.05041755]
[1741712663596,33.19089318,125.16,125.09,7.9961]
[1741712663801,33.19089318,125.16,125.05,4.8997]
[1741712664106,7.9966,125.09,125.06,7.9981]
[1741712664904,0.05041755,125.09,125.06,8.05598397]
[1741712665104,0.05041755,125.09,125.06,0.05788397]
[1741712665303,0.05041755,125.09,125.07,7.9975]
[1741712665504,0.05041755,125.09,125.06,0.05788397]
[1741712665808,0.05041755,125.09,125.06,8.05588397]
[1741712666202,0.05041755,125.09,125.06,0.05788397]
[1741712668803,0.05041755,125.09,125.07,37.5]
[1741712669305,263.74,125.14,125.12,7.9943]
[1741712669603,37.81849318,125.18,125.1,37.5]
[1741712670001,33.19089318,125.16,125.1,37.5]
[1741712670402,7.9943,125.13,125.12,0.05194718]
[1741712670898,4.6276,125.18,125.12,0.05194718]
[1741712670899,7.9927,125.15,125.12,0.05194718]
[1741712671411,7.9932,125.14,125.12,0.05194718]
[1741712671612,37.81849318,125.18,125.12,0.05194718]
[1741712672209,33.19089318,125.16,125.12,0.05194718]
[1741712672707,7.9939,125.13,125.12,0.05194718]
[1741712672907,33.19089318,125.16,125.12,0.05194718]
[1741712673309,37.81849318,125.18,125.13,7.9938]
[1741712673512,37.81849318,125.18,125.12,0.05194718]
[1741712674015,37.81849318,125.18,125.12,8.04614718]
[1741712674211,37.81849318,125.18,125.12,0.05194718]
[1741712674407,37.81849318,125.18,125.12,8.04634718]
[1741712674806,37.81849318,125.18,125.12,0.05194718]
[1741712675013,7.9936,125.14,125.12,0.05194718]
[1741712675512,37.81849318,125.18,125.12,0.05194718]
[1741712675710,33.19089318,125.16,125.12,0.05194718]
[1741712676311,33.19089318,125.16,125.07,23.69985]
[1741712676312,33.19089318,125.14,125.07,21.48555]
[1741712676512,33.19089318,125.12,125.07,21.48555]
[1741712676716,7.9971,125.08,125.07,21.48555]
[1741712677112,2.3325,125.11,125.07,21.48555]
[1741712677411,7.9971,125.08,125.07,16.37994365]
[1741712677612,41.18799318,125.08,125.07,16.37994365]
[1741712677815,73.07089318,125.08,125.06,0.05930169]
[1741712678015,73.07089318,125.08,125.0,45.4822]
[1741712678016,70.67089318,125.08,125.0,37.48]
[1741712678514,33.19089318,125.06,125.0,37.48]
[1741712679209,0.05099722,125.04,125.02,0.05660143]
[1741712679714,70.7218904,125.04,124.95,8.0053]
[1741712680020,33.19089318,125.0,124.94,131.23945741]
[1741712680221,70.69089318,125.0,124.94,131.23945741]
[1741712680513,70.69089318,125.0,124.93,2.3703]
[1741712680704,70.69089318,125.0,124.95,0.05878282]
[1741712680911,0.05366508,124.98,124.95,0.05878282]
[1741712682012,8.05736508,124.98,124.95,0.05878282]
[1741712682816,0.05366508,124.98,124.95,0.05878282]
[1741712684419,0.05366508,124.98,124.97,8.0041]
[1741712685118,0.05366508,124.98,124.96,45.5045]
[1741712685816,0.05366508,124.98,124.96,37.5]
[1741712687825,0.05366508,124.98,124.95,0.05878282]
[1741712688914,0.05366508,124.98,124.96,8.0043]
[1741712689114,0.05366508,124.98,124.95,0.05878282]
[1741712689413,8.05756508,124.98,124.95,8.06398282]
[1741712689613,0.05366508,124.98,124.95,0.05878282]
[1741712689917,8.0046,124.97,124.95,0.05878282]
[1741712690216,0.05366508,124.98,124.95,0.05878282]
[1741712690515,0.05366508,124.98,124.96,8.0044]
[1741712690719,0.05366508,124.98,124.95,0.05878282]
[1741712691120,0.05366508,124.98,124.97,8.0041]
[1741712691513,0.05366508,124.98,124.95,0.05878282]
[1741712691721,0.05366508,124.98,124.97,8.0041]
[1741712691918,0.05366508,124.98,124.97,45.5041]
[1741712692111,2.2136,125.04,124.97,37.5]
[1741712692715,72.90449318,125.04,124.94,37.5]
[1741712693112,0.05174139,125.0,124.98,0.05200903]
[1741712693910,8.05394139,125.0,124.98,0.05200903]
[1741712694310,0.05174139,125.0,124.98,0.05200903]
[1741712694515,8.05394139,125.0,124.98,0.05200903]
[1741712694720,0.05174139,125.0,124.98,0.05200903]
[1741712695017,8.05404139,125.0,124.98,0.05200903]
[1741712695215,0.05174139,125.0,124.98,0.05200903]
[1741712695417,263.98,125.12,125.02,8.0008]
[1741712695612,7.998,125.07,124.99,2.2389]
[1741712695813,2.3677,125.1,124.99,4.5542]
[1741712696726,0.05241247,125.06,125.03,0.06065886]
[1741712696923,0.05241247,125.06,125.04,7.9995]
[1741712697224,0.05241247,125.06,125.03,0.06065886]
[1741712697525,0.05241247,125.06,125.03,8.06055886]
[1741712697823,0.05241247,125.06,125.03,0.06065886]
[1741712698024,0.05241247,125.06,125.03,8.06085886]
[1741712698621,0.05241247,125.06,125.04,7.9992]
[1741712698821,0.05241247,125.06,125.03,0.06065886]
[1741712700123,7.9993,125.05,125.03,0.06065886]
[1741712700327,0.05241247,125.06,125.03,0.06065886]
[1741712700728,7.9996,125.04,125.03,0.06065886]
[1741712701129,7.9993,125.05,125.03,0.06065886]
[1741712701428,0.05241247,125.06,125.03,0.06065886]
[1741712702118,0.05241247,125.06,125.05,7.999]
[1741712702327,263.98,125.12,125.03,0.06065886]
[1741712702526,266.4786,125.12,125.03,2.8319]
[1741712702824,33.19089318,125.09,125.03,2.8319]
[1741712703030,33.19089318,125.09,125.0,2.4909]
[1741712703229,7.9974,125.08,125.0,5.3228]
[1741712703429,37.5,125.11,125.03,0.05126337]
[1741712703619,299.66949318,125.12,125.03,37.5]
[1741712703825,266.4786,125.12,125.06,0.05777887]
[1741712704025,263.98,125.12,125.07,37.5]
[1741712704229,7.993,125.15,125.1,7.9952]
[1741712704624,49.32185356,125.18,125.11,37.55969337]
[1741712704826,44.18275356,125.18,125.13,7.9935]
[1741712705030,44.18275356,125.18,125.11,37.5]
[1741712705332,44.18275356,125.18,125.14,0.06099809]
[1741712705522,7.9918,125.17,125.14,0.06099809]
[1741712705726,44.18275356,125.18,125.14,0.06099809]
[1741712706126,7.9926,125.15,125.14,0.06099809]
[1741712706629,33.19089318,125.15,125.08,37.5]
[1741712706824,2.6705,125.14,125.08,37.5]
[1741712707229,7.9964,125.09,125.05,190.0]
[1741712707431,33.19089318,125.13,125.05,37.5]
[1741712707635,33.19089318,125.13,125.05,45.4986]
[1741712707833,7.9964,125.09,125.08,0.05891769]
[1741712708133,0.0546402,125.1,125.08,0.05891769]
[1741712708727,0.0546402,125.1,125.09,7.9964]
[1741712709133,0.0546402,125.1,125.09,45.4764]
[1741712709334,263.92,125.19,125.1,7.9952]
[1741712709335,33.19089318,125.18,125.1,7.9952]
[1741712709535,35.63219318,125.18,125.09,37.48]
[1741712709738,7.993,125.15,125.09,37.48]
[1741712710038,35.63219318,125.18,125.11,7.9947]
[1741712710335,35.63219318,125.18,125.09,37.48]
[1741712710531,33.19089318,125.16,125.13,4.19e-06]
[1741712711233,33.19089318,125.14,125.06,37.48]
[1741712712237,40.2611,125.15,125.06,37.48]
[1741712712433,7.9958,125.1,125.09,0.05600554]
[1741712713038,0.06077955,125.11,125.09,0.05600554]
[1741712713439,7.9958,125.1,125.09,0.05600554]
[1741712713928,0.06077955,125.11,125.09,0.05600554]
[1741712715137,0.06077955,125.11,125.09,8.05220554]
[1741712715539,0.06077955,125.11,125.1,7.9958]
[1741712716937,0.06077955,125.11,125.09,37.51600554]
[1741712716938,46.67788157,125.18,125.13,7.9935]
[1741712717132,7.9921,125.16,125.13,7.9935]
[1741712717332,13.48698839,125.18,125.1,2.4454]
[1741712717632,46.67788157,125.18,125.1,2.4454]
[1741712717835,33.19089318,125.14,125.09,37.46]
[1741712718038,70.65089318,125.16,125.1,0.05810331]
[1741712718232,7.9935,125.14,125.09,37.46]
[1741712718444,7.9935,125.14,125.12,0.05257181]
[1741712718834,33.19089318,125.15,125.12,0.05257181]
[1741712719332,7.9939,125.13,125.12,0.05257181]
[1741712719538,41.18479318,125.13,125.12,7.181e-05]
[1741712722445,7.9939,125.13,125.12,7.181e-05]
[1741712726547,0.05622135,125.14,125.05,50.4278]
[1741712726742,7.997,125.09,125.05,50.4278]
[1741712726943,7.997,125.09,125.06,7.9983]
[1741712727348,7.9971,125.08,125.05,42.4291]
[1741712727549,73.44259318,125.15,125.05,42.4291]
[1741712727747,0.05498192,125.08,125.05,2.56523959]
[1741712727948,33.19089318,125.1,125.05,2.5123]
[1741712728148,0.05121299,125.08,125.05,2.56914404]
[1741712728853,7.9984,125.06,125.05,0.05684404]
[1741712732548,0.05121299,125.08,125.05,0.05684404]
[1741712733149,0.05121299,125.08,125.06,7.998]
[1741712733351,0.05121299,125.08,125.06,37.46]
[1741712733548,263.78,125.11,125.09,7.9964]
[1741712733753,263.78,125.11,125.06,39.7028]
[1741712733754,263.78,125.11,125.07,2.3039]
[1741712733955,44.18275356,125.13,125.07,35.49479318]
[1741712734261,44.18275356,125.13,125.09,33.19089318]
[1741712734454,88.36550712,125.14,125.1,37.46]
[1741712734663,11.08986703,125.15,125.14,7.9932]
[1741712734962,11.08986703,125.15,125.14,45.4532]
[1741712735162,11.08986703,125.15,125.14,37.46]
[1741712736865,11.08986703,125.15,125.13,0.0581577]
[1741712737263,7.9932,125.14,125.13,0.0581577]
[1741712737967,19.08266703,125.15,125.13,0.0581577]
[1741712738361,7.9928,125.15,125.13,0.0581577]
[1741712738566,70.65089318,125.21,125.13,0.0581577]
[1741712739165,7.9926,125.16,125.13,0.0581577]
[1741712739567,70.65089318,125.21,125.13,0.0581577]
[1741712739759,33.19089318,125.21,125.13,0.0581577]
[1741712739960,39.6259,125.2,125.13,0.0581577]
[1741712740267,33.19089318,125.17,125.13,0.0581577]
[1741712740561,33.19089318,125.15,125.08,37.44]
[1741712740760,334.37089318,125.15,125.08,37.44]
[1741712741355,263.74,125.15,125.08,37.44]
[1741712741554,0.05102958,125.13,125.12,7.9941]
[1741712741966,2.3729,125.19,125.12,37.44]
[1741712742559,7.9917,125.17,125.13,7.9935]
[1741712742865,7.9917,125.17,125.13,10.3042]
[1741712743056,7.9917,125.17,125.14,0.0582817]
[1741712743260,7.9917,125.17,125.14,8.0514817]
[1741712743461,263.74,125.21,125.14,0.0582817]
[1741712743770,263.74,125.21,125.14,8.0513817]
[1741712743962,263.74,125.21,125.14,0.0582817]
[1741712744365,263.74,125.21,125.14,8.0513817]
[1741712744664,263.74,125.21,125.14,0.0582817]
[1741712744866,263.74,125.21,125.17,7.9911]
[1741712745162,263.74,125.21,125.16,37.44]
[1741712745471,263.74,125.21,125.18,0.05962843]
[1741712745672,271.729,125.21,125.18,0.05962843]
[1741712746169,7.9885,125.22,125.18,0.05962843]
[1741712746670,88.36550712,125.23,125.18,0.05962843]
[1741712746865,7.9872,125.24,125.18,2.42682843]
[1741712747067,263.72,125.27,125.19,2.2873]
[1741712747263,7.9885,125.22,125.2,37.42]
[1741712747663,7.9885,125.22,125.2,37.47829895]
[1741712748162,263.72,125.27,125.2,37.47829895]
[1741712748669,33.19089318,125.26,125.2,37.47829895]
[1741712748869,33.19089318,125.26,125.2,0.05829895]
[1741712749562,7.9872,125.24,125.2,0.05829895]
[1741712750168,263.72,125.27,125.2,0.05829895]
[1741712753176,263.72,125.27,125.2,8.04739895]
[1741712753871,7.9878,125.23,125.2,8.04739895]
[1741712754171,263.72,125.27,125.2,0.05829895]
[1741712755472,7.9881,125.23,125.2,8.04769895]
[1741712755670,296.91089318,125.27,125.2,8.04769895]
[1741712756071,296.91089318,125.27,125.2,0.05829895]
[1741712756273,20.66661402,125.26,125.2,0.05829895]
[1741712756768,7.9888,125.21,125.2,0.05829895]
[1741712756962,20.66661402,125.26,125.2,0.05829895]
[1741712757162,7.9885,125.22,125.2,0.05829895]
[1741712757772,20.66661402,125.26,125.2,0.05829895]
[1741712758274,20.66661402,125.26,125.21,7.9887]
[1741712758575,7.9873,125.24,125.2,0.05829895]
[1741712758778,7.9873,125.24,125.21,7.9886]
[1741712758978,7.9865,125.25,125.2,0.05829895]
[1741712759178,263.72,125.27,125.2,0.05829895]
[1741712759469,20.66661402,125.26,125.2,0.05829895]
[1741712759674,7.9888,125.21,125.2,0.05829895]
[1741712760579,20.66661402,125.22,125.14,7.9928]
[1741712760783,20.66661402,125.22,125.13,37.4]
[1741712760973,20.66661402,125.22,125.13,58.06661402]
[1741712761279,20.66661402,125.22,125.13,37.4]
[1741712761477,7.9921,125.16,125.13,37.4]
[1741712761773,20.66661402,125.22,125.14,7.9928]
[1741712761970,0.05324881,125.16,125.13,37.45650569]
[1741712762172,20.66661402,125.2,125.16,0.0613085]
[1741712762377,20.66661402,125.2,125.13,37.4]
[1741712762677,0.05820075,125.19,125.17,0.05675752]
[1741712763274,7.9907,125.18,125.17,0.05675752]
[1741712763773,7.9935,125.14,125.12,2.2879]
[1741712763980,7.9935,125.14,125.12,39.6879]
[1741712764178,20.66661402,125.17,125.1,37.4]
[1741712764381,2.2962,125.18,125.1,37.4]
[1741712764679,2.2962,125.18,125.11,20.66661402]
[1741712764871,7.9933,125.14,125.11,7.9951]
[1741712765069,7.9933,125.14,125.13,0.05168531]
[1741712765479,0.05624828,125.15,125.13,0.05168531]
[1741712765877,263.6,125.19,125.14,37.4]
[1741712766073,271.5904,125.19,125.14,37.4]
[1741712766278,263.6,125.19,125.14,37.4]
[1741712767175,7.9916,125.17,125.14,37.4]
[1741712767375,0.0518489,125.18,125.17,7.9913]
[1741712767580,0.0518489,125.18,125.14,62.72671402]
[1741712767779,0.0518489,125.18,125.16,0.05586736]
[1741712768580,8.0428489,125.18,125.16,0.05586736]
[1741712768782,0.0518489,125.18,125.16,0.05586736]
[1741712769286,7.9913,125.17,125.16,0.05586736]
[1741712769584,0.0518489,125.18,125.16,0.05586736]
[1741712770887,7.9877,125.23,125.17,20.66661402]
[1741712771086,2.3174,125.24,125.18,37.4]
[1741712771385,7.9878,125.23,125.2,7.9891]
[1741712772182,8.00936012,125.23,125.2,8.0432634]
[1741712772381,0.02156012,125.23,125.2,0.0541634]
[1741712772777,0.02156012,125.23,125.21,7.9884]
[1741712772977,0.02156012,125.23,125.2,37.4541634]
[1741712773779,0.02156012,125.23,125.22,7.9881]
[1741712774384,0.02156012,125.23,125.2,37.4541634]
[1741712774583,20.68817414,125.23,125.2,0.0541634]
[1741712774886,0.02156012,125.23,125.2,0.0541634]
[1741712775287,7.9884,125.22,125.2,0.0541634]
[1741712775485,0.02156012,125.23,125.2,0.0541634]
[1741712776184,20.66661402,125.21,125.12,58.04661402]
[1741712776490,33.09936004,125.19,125.11,2.1857]
[1741712776689,2.2229,125.18,125.1,37.38]
[1741712776984,263.58,125.17,125.1,37.38]
[1741712777390,8.04723247,125.15,125.12,0.06053596]
[1741712777591,0.05453247,125.15,125.12,8.05453596]
[1741712777890,0.05453247,125.15,125.12,0.06053596]
[1741712778091,0.05453247,125.15,125.12,8.05473596]
[1741712778394,0.05453247,125.15,125.12,0.06053596]
[1741712778988,0.05453247,125.15,125.07,37.38]
[1741712779282,35.27686004,125.16,125.07,37.38]
[1741712780093,0.05196251,125.13,125.1,0.05361304]
[1741712781894,0.05196251,125.13,125.1,8.04931304]
[1741712782195,0.05196251,125.13,125.1,0.05361304]
[1741712782398,7.995,125.12,125.1,0.05361304]
[1741712782591,0.05196251,125.13,125.1,0.05361304]
[1741712782896,0.05196251,125.13,125.11,7.9951]
[1741712783091,0.05196251,125.13,125.1,0.05361304]
[1741712783490,0.05196251,125.13,125.12,7.9945]
[1741712784098,263.58,125.17,125.15,7.9923]
[1741712784698,263.58,125.17,125.11,39.5642]
[1741712785293,7.9897,125.2,125.16,7.992]
[1741712785796,0.05186917,125.19,125.17,0.05308879]
[1741712785997,0.05186917,125.19,125.17,8.04438879]
[1741712786195,7.9907,125.18,125.17,0.05308879]
[1741712787397,7.9917,125.17,125.11,39.5642]
[1741712787897,7.9933,125.14,125.11,39.5642]
[1741712788099,70.47936004,125.2,125.11,39.5642]
[1741712788301,70.47936004,125.2,125.12,7.9941]
[1741712788502,7.993,125.15,125.14,0.05510477]
[1741712788899,0.05818657,125.17,125.14,0.05510477]
[1741712789297,33.04333794,125.24,125.16,33.09936004]
[1741712789596,33.04333794,125.24,125.2,33.09936004]
[1741712789798,33.04333794,125.24,125.21,37.38]
[1741712790595,33.09689349,125.24,125.23,7.9875]
[1741712791201,88.36550712,125.25,125.23,33.09936004]
[1741712791398,53.8312385,125.25,125.24,7.9869]
[1741712791609,247.40202357,125.27,125.23,35.49936004]